fUST/lending_fUST_20251010
["ID","MTS","AMOUNT","RATE_DAILY","PERIOD"]
[390467525,1760056244163,-500.0,0.00018356,2]
[390467526,1760056244173,-500.0,0.00018356,2]
[390467527,1760056244183,-1326.73,0.00018356,2]
[390467528,1760056244192,-500.0,0.00018356,2]
[390467529,1760056244202,-151.0,0.00018356,2]
[390467530,1760056244211,-500.0,0.00018356,2]
[390467531,1760056244221,-2696.41,0.00018356,2]
[390467532,1760056244230,-151.0,0.00018356,2]
[390467533,1760056244240,-151.0,0.00018356,2]
[390467534,1760056244249,-152.939898,0.00018356,2]
[390467535,1760056244259,-500.0,0.00018356,2]
[390467536,1760056244270,-500.0,0.00018356,2]
[390467538,1760056244280,-151.0,0.00018356,2]
[390467540,1760056244290,-151.0,0.00018356,2]
[390467542,1760056244300,-151.0,0.00018356,2]
[390467544,1760056244310,-521.9,0.00018356,2]
[390467546,1760056244319,-151.0,0.00018356,2]
[390467548,1760056244329,-151.0,0.00018356,2]
[390467550,1760056244339,-151.0,0.00018356,2]
[390467552,1760056244348,-500.0,0.00018356,2]
[390467554,1760056244358,-1059.29,0.00018356,2]
[390467556,1760056244368,-500.0,0.00018356,2]
[390467558,1760056244378,-500.0,0.00018356,2]
[390467560,1760056244389,-1006.76,0.00018356,2]
[390467562,1760056244399,-1141.37,0.00018356,2]
[390467564,1760056244409,-151.0,0.00018356,2]
[390467566,1760056244419,-151.0,0.00018356,2]
[390467568,1760056244429,-500.0,0.00018356,2]
[390467570,1760056244439,-151.0,0.00018356,2]
[390467572,1760056244449,-151.0,0.00018356,2]
[390467574,1760056244459,-500.0,0.00018356,2]
[390467576,1760056244468,-500.0,0.00018356,2]
[390467578,1760056244478,-3158.0,0.0001838,2]
[390467580,1760056244489,-1500.0,0.00018381,2]
[390467592,1760056244639,-1308.2102965,0.00018394,2]
[390467595,1760056244670,-1042.12727065,0.000184,2]
[390467597,1760056244681,-10249.09267034,0.000184,2]
[390467599,1760056244690,-721.71977908,0.000184,2]
[390467601,1760056244700,-197.29710914,0.000184,2]
[390467603,1760056244709,-321.0605993,0.000184,2]
[390467605,1760056244718,-720.0,0.00018442,2]
[390467607,1760056244727,-500.0,0.00018447,2]
[390467609,1760056244736,-500.0,0.00018447,2]
[390467611,1760056244745,-500.0,0.00018447,2]
[390467613,1760056244755,-1042.12727065,0.000185,2]
[390467615,1760056244764,-10249.09267034,0.000185,2]
[390467617,1760056244773,-721.71977908,0.000185,2]
[390467619,1760056244783,-197.29710914,0.000185,2]
[390467621,1760056244794,-321.0605993,0.000185,2]
[390467622,1760056244804,-3158.0,0.00018553,2]
[390467625,1760056244814,-500.0,0.00018555,2]
[390467626,1760056244823,-500.0,0.00018555,2]
[390467628,1760056244833,-500.0,0.00018555,2]
[390467630,1760056244842,-168.0,0.00018583,2]
[390467632,1760056244851,-165.21529698,0.00018589,2]
[390467634,1760056244860,-500.0,0.00018589,2]
[390467636,1760056244870,-500.0,0.00018589,2]
[390467638,1760056244879,-500.0,0.00018589,2]
[390467640,1760056244888,-500.0,0.00018589,2]
[390467642,1760056244897,-500.0,0.00018589,2]
[390467644,1760056244906,-500.0,0.00018589,2]
[390467646,1760056244915,-500.0,0.00018589,2]
[390467648,1760056244924,-500.0,0.00018589,2]
[390467650,1760056244933,-500.0,0.00018589,2]
[390467652,1760056244942,-500.85193881,0.00018589,2]
[390467654,1760056244951,-500.0,0.00018589,2]
[390467656,1760056244960,-500.0,0.00018589,2]
[390467658,1760056244969,-500.0,0.00018589,2]
[390467660,1760056244979,-500.0,0.00018589,2]
[390467662,1760056244988,-500.0,0.00018589,2]
[390467664,1760056244998,-500.0,0.00018589,2]
[390467666,1760056245008,-500.0,0.00018589,2]
[390467668,1760056245018,-284.02140231,0.00018589,2]
[390467670,1760056245027,-500.0,0.00018589,2]
[390467672,1760056245036,-168.0,0.0001859,2]
[390467674,1760056245045,-500.0,0.00018593,2]
[390467676,1760056245055,-500.0,0.00018593,2]
[390467678,1760056245064,-500.0,0.00018593,2]
[390467680,1760056245073,-500.0,0.00018593,2]
[390467682,1760056245082,-642.46180802,0.00018593,2]
[390467684,1760056245091,-500.0,0.00018593,2]
[390467686,1760056245102,-500.0,0.00018593,2]
[390467688,1760056245111,-500.0,0.00018593,2]
[390467690,1760056245122,-665.794793,0.00018614,2]
[390467692,1760056245132,-264.545202,0.00018614,2]
[390467694,1760056245141,-500.0,0.00018627,2]
[390467696,1760056245151,-505.21896128,0.00018627,2]
[390467698,1760056245160,-500.0,0.00018627,2]
[390467700,1760056245170,-501.03686346,0.00018627,2]
[390467702,1760056245179,-626.82541977,0.00018627,2]
[390467704,1760056245188,-214.18640301,0.00018627,2]
[390467706,1760056245199,-498.07791259,0.00018627,2]
[390467708,1760056245210,-500.0,0.0001863,2]
[390467710,1760056245219,-884.02,0.0001863,2]
[390467712,1760056245228,-1061.14,0.0001863,2]
[390467714,1760056245237,-526.41,0.0001863,2]
[390467716,1760056245246,-500.0,0.0001863,2]
[390467718,1760056245255,-500.0,0.0001863,2]
[390467720,1760056245265,-521.76,0.0001863,2]
[390467723,1760056245275,-500.0,0.0001863,2]
[390467724,1760056245285,-646.25,0.0001863,2]
[390467726,1760056245294,-1118.56,0.0001863,2]
[390467728,1760056245303,-1053.66,0.0001863,2]
[390467730,1760056245312,-2328.94,0.0001863,2]
[390467733,1760056245322,-500.0,0.0001863,2]
[390467734,1760056245333,-500.0,0.0001863,2]
[390467736,1760056245343,-1355.33,0.0001863,2]
[390467739,1760056245353,-3348.26,0.0001863,2]
[390467741,1760056245363,-500.0,0.0001863,2]
[390467743,1760056245372,-522.54,0.0001863,2]
[390467744,1760056245382,-3921.28,0.0001863,2]
[390467747,1760056245393,-1533.05,0.0001863,2]
[390467750,1760056245403,-2240.21,0.0001863,2]
[390467753,1760056245412,-887.65,0.0001863,2]
[390467756,1760056245422,-500.0,0.0001863,2]
[390467758,1760056245431,-500.0,0.0001863,2]
[390467761,1760056245442,-500.0,0.0001863,2]
[390467763,1760056245451,-500.0,0.0001863,2]
[390467766,1760056245462,-664.35,0.0001863,2]
[390467767,1760056245471,-500.0,0.0001863,2]
[390467769,1760056245481,-500.0,0.0001863,2]
[390467771,1760056245490,-500.0,0.0001863,2]
[390467774,1760056245500,-548.51,0.0001863,2]
[390467776,1760056245509,-2399.29,0.0001863,2]
[390467778,1760056245519,-684.01,0.0001863,2]
[390467780,1760056245529,-2754.13,0.0001863,2]
[390467782,1760056245539,-500.0,0.0001863,2]
[390467784,1760056245548,-500.0,0.0001863,2]
[390467786,1760056245557,-500.0,0.0001863,2]
[390467788,1760056245567,-500.0,0.0001863,2]
[390467790,1760056245576,-540.2,0.0001863,2]
[390467792,1760056245585,-544.67,0.0001863,2]
[390467794,1760056245595,-500.0,0.0001863,2]
[390467796,1760056245605,-587.74,0.0001863,2]
[390467798,1760056245614,-916.67,0.0001863,2]
[390467800,1760056245623,-500.0,0.0001863,2]
[390467802,1760056245632,-500.0,0.0001863,2]
[390467804,1760056245641,-1326.73,0.0001863,2]
[390467806,1760056245650,-500.0,0.0001863,2]
[390467807,1760056245659,-500.0,0.0001863,2]
[390467810,1760056245668,-2696.41,0.0001863,2]
[390467811,1760056245678,-500.0,0.0001863,2]
[390467813,1760056245687,-500.0,0.0001863,2]
[390467815,1760056245697,-521.9,0.0001863,2]
[390467817,1760056245706,-500.0,0.0001863,2]
[390467820,1760056245716,-1059.29,0.0001863,2]
[390467821,1760056245725,-500.0,0.0001863,2]
[390467824,1760056245735,-500.0,0.0001863,2]
[390467825,1760056245744,-1006.76,0.0001863,2]
[390467828,1760056245754,-1141.37,0.0001863,2]
[390467830,1760056245763,-500.0,0.0001863,2]
[390467832,1760056245772,-151.0,0.0001863,2]
[390467834,1760056245782,-223.57010379,0.0001863,2]
[390467836,1760056245792,-151.0,0.0001863,2]
[390467838,1760056245806,-151.0,0.0001863,2]
[390467840,1760056245816,-500.0,0.0001863,2]
[390467841,1760056245825,-151.0,0.0001863,2]
[390467844,1760056245834,-151.0,0.0001863,2]
[390467845,1760056245846,-151.0,0.0001863,2]
[390467847,1760056245855,-600.0,0.00018674,2]
[390467849,1760056245865,-1042.12727065,0.000187,2]
[390467851,1760056245877,-10249.09267034,0.000187,2]
[390467853,1760056245886,-721.71977908,0.000187,2]
[390467855,1760056245895,-321.0605993,0.000187,2]
[390467857,1760056245904,-160.0,0.00018715,2]
[390467859,1760056245914,-1176.45410288,0.00018729,2]
[390467861,1760056245924,-3158.0,0.00018739,2]
[390467863,1760056245934,-168.0,0.0001874,2]
[390467865,1760056245947,-168.0,0.00018745,2]
[390467867,1760056245956,-168.0,0.00018762,2]
[390467869,1760056245965,-151.0,0.00018815,2]
[390467872,1760056245975,-151.0,0.00018815,2]
[390467873,1760056245984,-500.0,0.00018815,2]
[390467875,1760056245993,-500.0,0.00018815,2]
[390467878,1760056246003,-500.0,0.00018815,2]
[390467880,1760056246012,-588.80661976,0.00018838,2]
[390467882,1760056246021,-288.574681,0.00018862,2]
[390467884,1760056246031,-168.0,0.00018866,2]
[390467886,1760056246040,-1498.35633883,0.00018868,2]
[390467887,1760056246050,-600.0,0.00018868,2]
[390467890,1760056246060,-1042.12727065,0.000189,2]
[390467891,1760056246070,-10249.09267034,0.000189,2]
[390467894,1760056246079,-151.0,0.00018904,2]
[390467896,1760056246088,-151.58172197,0.00018904,2]
[390467898,1760056246098,-151.0,0.00018904,2]
[390467900,1760056246107,-500.0,0.00018904,2]
[390467901,1760056246117,-151.0,0.00018904,2]
[390467903,1760056246127,-151.0,0.00018904,2]
[390467906,1760056246136,-151.0,0.00018904,2]
[390467908,1760056246145,-151.0,0.00018904,2]
[390467910,1760056246154,-884.02,0.00018904,2]
[390467911,1760056246164,-151.0,0.00018904,2]
[390467913,1760056246173,-151.0,0.00018904,2]
[390467915,1760056246183,-151.0,0.00018904,2]
[390467917,1760056246192,-151.0,0.00018904,2]
[390467919,1760056246201,-151.0,0.00018904,2]
[390467921,1760056246211,-1061.14,0.00018904,2]
[390467923,1760056246220,-151.0,0.00018904,2]
[390467925,1760056246229,-168.360258,0.00018904,2]
[390467927,1760056246238,-168.360258,0.00018904,2]
[390467929,1760056246247,-526.41,0.00018904,2]
[390467931,1760056246256,-168.360258,0.00018904,2]
[390467933,1760056246264,-168.360258,0.00018904,2]
[390467935,1760056246273,-151.0,0.00018904,2]
[390467937,1760056246282,-500.0,0.00018904,2]
[390467939,1760056246291,-151.0,0.00018904,2]
[390467941,1760056246301,-151.0,0.00018904,2]
[390467943,1760056246310,-151.0,0.00018904,2]
[390467945,1760056246319,-151.0,0.00018904,2]
[390467947,1760056246328,-500.0,0.00018904,2]
[390467949,1760056246337,-521.76,0.00018904,2]
[390467951,1760056246346,-151.0,0.00018904,2]
[390467953,1760056246355,-212.728555,0.00018904,2]
[390467955,1760056246365,-212.728555,0.00018904,2]
[390467957,1760056246375,-212.728555,0.00018904,2]
[390467959,1760056246385,-212.728555,0.00018904,2]
[390467961,1760056246394,-500.0,0.00018904,2]
[390467963,1760056246405,-646.25,0.00018904,2]
[390467965,1760056246415,-1118.56,0.00018904,2]
[390467967,1760056246424,-1053.66,0.00018904,2]
[390467969,1760056246434,-151.0,0.00018904,2]
[390467971,1760056246446,-2328.94,0.00018904,2]
[390467973,1760056246455,-500.0,0.00018904,2]
[390467975,1760056246465,-500.0,0.00018904,2]
[390467977,1760056246475,-1355.33,0.00018904,2]
[390467979,1760056246485,-3348.26,0.00018904,2]
[390467981,1760056246495,-500.0,0.00018904,2]
[390467983,1760056246505,-522.54,0.00018904,2]
[390467985,1760056246514,-3921.28,0.00018904,2]
[390467987,1760056246524,-1533.05,0.00018904,2]
[390467989,1760056246533,-2240.21,0.00018904,2]
[390467991,1760056246543,-887.65,0.00018904,2]
[390467993,1760056246552,-151.0,0.00018904,2]
[390467995,1760056246561,-500.0,0.00018904,2]
[390467997,1760056246570,-288.782122,0.00018904,2]
[390467999,1760056246579,-500.0,0.00018904,2]
[390468001,1760056246588,-500.0,0.00018904,2]
[390468003,1760056246597,-500.0,0.00018904,2]
[390468005,1760056246606,-664.35,0.00018904,2]
[390468007,1760056246615,-500.0,0.00018904,2]
[390468009,1760056246626,-151.0,0.00018904,2]
[390468010,1760056246636,-500.0,0.00018904,2]
[390468011,1760056246645,-548.51,0.00018904,2]
[390468012,1760056246654,-2399.29,0.00018904,2]
[390468013,1760056246664,-684.01,0.00018904,2]
[390468014,1760056246674,-647.27444271,0.00018904,2]
[390468034,1760056246885,-2106.85555729,0.00018904,2]
[390468036,1760056246895,-500.0,0.00018904,2]
[390468038,1760056246905,-151.0,0.00018904,2]
[390468040,1760056246914,-500.0,0.00018904,2]
[390468042,1760056246923,-500.0,0.00018904,2]
[390468044,1760056246932,-151.0,0.00018904,2]
[390468046,1760056246942,-151.0,0.00018904,2]
[390468048,1760056246951,-181.52547674,0.00018904,2]
[390468050,1760056246959,-151.0,0.00018904,2]
[390468052,1760056246968,-540.2,0.00018904,2]
[390468054,1760056246977,-544.67,0.00018904,2]
[390468056,1760056246987,-500.0,0.00018904,2]
[390468058,1760056246996,-587.74,0.00018904,2]
[390468060,1760056247005,-916.67,0.00018904,2]
[390468062,1760056247015,-500.0,0.00018904,2]
[390468064,1760056247024,-500.0,0.00018904,2]
[390468066,1760056247033,-1326.73,0.00018904,2]
[390468068,1760056247042,-500.0,0.00018904,2]
[390468070,1760056247051,-154.969931,0.00018904,2]
[390468072,1760056247061,-500.0,0.00018904,2]
[390468074,1760056247070,-129.84333753,0.00018904,2]
[390468076,1760056247082,-2566.56666247,0.00018904,2]
[390468078,1760056247093,-161.912305,0.00018904,2]
[390468080,1760056247101,-151.0,0.00018904,2]
[390468082,1760056247111,-500.0,0.00018904,2]
[390468084,1760056247121,-500.0,0.00018904,2]
[390468086,1760056247131,-151.0,0.00018904,2]
[390468088,1760056247140,-151.0,0.00018904,2]
[390468090,1760056247149,-521.9,0.00018904,2]
[390468092,1760056247159,-151.0,0.00018904,2]
[390468094,1760056247169,-151.0,0.00018904,2]
[390468096,1760056247179,-467.33089021,0.00018904,2]
[390468098,1760056247188,-1059.29,0.00018904,2]
[390468100,1760056247198,-500.0,0.00018904,2]
[390468102,1760056247207,-500.0,0.00018904,2]
[390468104,1760056247216,-1006.76,0.00018904,2]
[390468106,1760056247225,-1141.37,0.00018904,2]
[390468108,1760056247235,-151.0,0.00018904,2]
[390468110,1760056247244,-151.0,0.00018904,2]
[390468112,1760056247255,-500.0,0.00018904,2]
[390468114,1760056247266,-151.0,0.00018904,2]
[390468116,1760056247275,-500.0,0.00018904,2]
[390468118,1760056247284,-168.0,0.00018917,2]
[390468120,1760056247294,-438.85825433,0.00018929,2]
[390468122,1760056247303,-3158.0,0.00018936,2]
[390468124,1760056247313,-151.0,0.00018936,2]
[390468126,1760056247323,-286.371093,0.00018936,2]
[390468128,1760056247332,-168.0,0.0001898,2]
[390468129,1760056247341,-500.90537525,0.00018995,2]
[390468131,1760056247350,-1000.0,0.00018995,2]
[390468133,1760056247359,-1000.0,0.00018995,2]
[390468135,1760056247369,-2000.0,0.00019,2]
[390468137,1760056247379,-168.0,0.00019015,2]
[390468139,1760056247388,-168.0,0.00019029,2]
[390468141,1760056247398,-187.0,0.00019041,3]
[390468143,1760056247407,-600.0,0.00019063,2]
[390468145,1760056247417,-3158.0,0.00019067,2]
[390468147,1760056247426,-168.0,0.00019076,2]
[390468149,1760056247435,-1042.12727065,0.000191,2]
[390468151,1760056247444,-10249.09267034,0.000191,2]
[390468153,1760056247454,-1728.40064318,0.000191,2]
[390468155,1760056247464,-1000.0,0.00019103,2]
[390468157,1760056247473,-1000.0,0.00019103,2]
[390468159,1760056247483,-1000.0,0.00019103,2]
[390468161,1760056247492,-1000.0,0.00019137,2]
[390468163,1760056247501,-1000.0,0.00019137,2]
[390468165,1760056247510,-1000.0,0.00019137,2]
[390468167,1760056247519,-1103.30934371,0.00019137,2]
[390468169,1760056247528,-500.0,0.00019137,2]
[390468171,1760056247537,-1000.0,0.00019137,2]
[390468173,1760056247547,-1000.0,0.00019137,2]
[390468175,1760056247556,-1000.0,0.00019137,2]
[390468177,1760056247565,-1000.0,0.00019137,2]
[390468179,1760056247575,-1000.0,0.00019137,2]
[390468181,1760056247584,-1000.0,0.00019137,2]
[390468183,1760056247593,-1000.0,0.00019137,2]
[390468185,1760056247602,-1000.0,0.00019137,2]
[390468187,1760056247612,-805.04336075,0.00019137,2]
[390468189,1760056247621,-500.0,0.00019137,2]
[390468191,1760056247630,-500.0,0.00019141,2]
[390468193,1760056247640,-1000.0,0.00019141,2]
[390468195,1760056247649,-1000.0,0.00019141,2]
[390468197,1760056247658,-351.47199974,0.00019141,2]
[390468199,1760056247667,-168.0,0.00019173,2]
[390468201,1760056247676,-561.542572,0.00019175,2]
[390468203,1760056247685,-413.32657534,0.00019175,2]
[390468205,1760056247695,-199.38162027,0.00019178,2]
[390468207,1760056247704,-796.72895461,0.00019178,2]
[390468209,1760056247714,-702.05305092,0.00019178,2]
[390468211,1760056247724,-150.0,0.00019178,2]
[390468213,1760056247734,-300.0,0.00019178,2]
[390468215,1760056247743,-450.0,0.00019178,2]
[390468217,1760056247752,-600.0,0.00019178,2]
[390468219,1760056247761,-750.0,0.00019178,2]
[390468221,1760056247770,-795.19800839,0.00019178,2]
[390468223,1760056247780,-151.0,0.00019178,2]
[390468225,1760056247789,-500.0,0.00019178,2]
[390468227,1760056247802,-884.02,0.00019178,2]
[390468229,1760056247811,-1061.14,0.00019178,2]
[390468231,1760056247821,-526.41,0.00019178,2]
[390468233,1760056247830,-500.0,0.00019178,2]
[390468235,1760056247839,-500.0,0.00019178,2]
[390468237,1760056247849,-521.76,0.00019178,2]
[390468239,1760056247858,-500.0,0.00019178,2]
[390468240,1760056247867,-646.25,0.00019178,2]
[390468242,1760056247878,-1118.56,0.00019178,2]
[390468245,1760056247890,-1053.66,0.00019178,2]
[390468247,1760056247899,-2328.94,0.00019178,2]
[390468249,1760056247908,-500.0,0.00019178,2]
[390468250,1760056247918,-500.0,0.00019178,2]
[390468253,1760056247927,-1355.33,0.00019178,2]
[390468254,1760056247936,-3348.26,0.00019178,2]
[390468256,1760056247945,-500.0,0.00019178,2]
[390468258,1760056247955,-522.54,0.00019178,2]
[390468260,1760056247964,-388.60599675,0.00019178,2]
[390468307,1760056248395,-500.0,0.00016438,2]
[390468309,1760056248404,-500.0,0.00016438,2]
[390468310,1760056248417,-500.0,0.00016438,2]
[390468312,1760056248426,-151.8,0.00016438,2]
[390468314,1760056248435,-500.0,0.00016438,2]
[390468316,1760056248444,-500.0,0.00016438,2]
[390468319,1760056248453,-500.0,0.00016712,2]
[390468320,1760056248462,-500.0,0.00016712,2]
[390468323,1760056248473,-500.0,0.00016986,2]
[390468325,1760056248483,-500.0,0.00016986,2]
[390468327,1760056248492,-500.0,0.0001726,2]
[390468329,1760056248501,-500.0,0.0001726,2]
[390468331,1760056248510,-500.0,0.00017534,2]
[390468333,1760056248521,-500.0,0.00017534,2]
[390468335,1760056248531,-500.0,0.00017808,2]
[390468337,1760056248540,-570.1,0.00017808,2]
[390468339,1760056248549,-363.48196162,0.00018082,2]
[390470804,1760056293227,200.0,0.00028251,120]
[390470805,1760056379739,334.508394,0.00019,20]
[390470806,1760056381972,334.508394,0.000189,20]
[390470807,1760056382951,334.508394,0.000188,20]
[390470809,1760056412295,200.0,0.00028653,120]
[390470811,1760056418728,777.049447,0.00019,20]
[390470812,1760056419139,777.049447,0.000189,20]
[390470813,1760056419560,777.049447,0.000188,20]
[390470817,1760056473360,200.0,0.00028652,120]
[390470827,1760056994112,403.64721134,0.00028767,120]
[390470830,1760057015320,618.460853,0.00019,20]
[390470831,1760057015719,618.460853,0.000189,20]
[390470833,1760057016115,618.460853,0.000188,20]
[390470835,1760057027299,265.607767,0.00019,20]
[390470836,1760057027719,265.607767,0.000189,20]
[390470837,1760057028152,265.607767,0.000188,20]
[390470840,1760057158986,264.637976,0.00015437,2]
[390470841,1760057190496,230.859745,0.00015437,2]
[390470842,1760057245129,-186.21822421,0.00016238,2]
[390470843,1760057245152,-69.51453839,0.00016337,2]
[390470844,1760057275842,3274.76755208,0.00028,120]
[390470851,1760057373113,-312.66231211,0.00016337,2]
[390470852,1760057373133,-300.0,0.00016436,2]
[390470853,1760057373153,-1500.77054111,0.00016437,2]
[390470854,1760057379394,287.41737517,0.00028,120]
[390470886,1760057432357,-169.4803197,0.00016338,2]
[390470888,1760057432366,-1111.0585433,0.00016437,2]
[390471118,1760057438141,-2388.17091559,0.00016437,2]
[390471120,1760057438150,-300.0,0.00016437,2]
[390471122,1760057438160,-500.0,0.00016438,2]
[390471124,1760057438169,-500.0,0.00016438,2]
[390471126,1760057438181,-206.43776787,0.00016438,2]
[390471128,1760057438191,-500.0,0.00016438,2]
[390471130,1760057438206,-500.85296202,0.00016438,2]
[390471132,1760057438216,-520.0,0.00016438,3]
[390471134,1760057438227,-500.0,0.00016438,2]
[390471136,1760057438238,-500.0,0.00016438,2]
[390471138,1760057438248,-500.0,0.00016438,2]
[390471141,1760057438259,-519.60400697,0.00016438,2]
[390471143,1760057438268,-500.0,0.00016438,2]
[390471145,1760057438278,-500.0,0.00016438,2]
[390471147,1760057438288,-500.0,0.00016438,2]
[390471149,1760057438299,-500.0,0.00016438,2]
[390471151,1760057438309,-600.75245879,0.00016438,2]
[390471153,1760057438318,-500.0,0.00016438,2]
[390471155,1760057438328,-500.0,0.00016438,2]
[390471157,1760057438337,-462.19833208,0.00016438,2]
[390471159,1760057438347,-500.0,0.00016438,2]
[390471161,1760057438357,-500.0,0.00016438,2]
[390471163,1760057438367,-500.0,0.00016438,2]
[390471165,1760057438376,-500.0,0.00016438,2]
[390471166,1760057438385,-500.0,0.00016438,2]
[390471168,1760057438395,-500.0,0.00016438,2]
[390471170,1760057438404,-151.0,0.00016438,2]
[390471172,1760057438413,-500.0,0.00016438,2]
[390471174,1760057438422,-151.0,0.00016438,2]
[390471177,1760057438435,-500.0,0.00016438,2]
[390471179,1760057438445,-500.0,0.00016438,2]
[390471180,1760057438455,-170.65446122,0.00016438,2]
[390471183,1760057438472,-255.08822458,0.00016438,2]
[390471185,1760057438482,-500.0,0.00016438,2]
[390471187,1760057438492,-500.0,0.00016438,2]
[390471189,1760057438501,-588.93220548,0.00016438,2]
[390471191,1760057438511,-500.0,0.00016438,2]
[390471193,1760057438521,-500.0,0.00016438,2]
[390471195,1760057438531,-500.0,0.00016438,2]
[390471197,1760057438541,-553.40176351,0.00016438,2]
[390471199,1760057438551,-500.0,0.00016438,2]
[390471201,1760057438560,-500.0,0.00016438,2]
[390471203,1760057438570,-500.0,0.00016438,2]
[390471205,1760057438579,-500.0,0.00016438,2]
[390471207,1760057438589,-500.0,0.00016438,2]
[390471208,1760057438599,-500.0,0.00016438,2]
[390471209,1760057438608,-500.0,0.00016438,2]
[390471211,1760057438618,-500.0,0.00016438,2]
[390471213,1760057438628,-500.0,0.00016438,2]
[390471215,1760057438638,-500.0,0.00016438,2]
[390471217,1760057438649,-500.0,0.00016438,2]
[390471219,1760057438658,-500.0,0.00016438,2]
[390471221,1760057438667,-500.0,0.00016438,2]
[390471223,1760057438678,-500.0,0.00016438,2]
[390471225,1760057438688,-222.48677283,0.00016438,2]
[390471227,1760057438697,-306.92456966,0.00016438,2]
[390471229,1760057438707,-500.0,0.00016438,2]
[390471231,1760057438716,-500.0,0.00016438,2]
[390471233,1760057438727,-500.0,0.00016438,2]
[390471235,1760057438736,-500.0,0.00016438,2]
[390471237,1760057438745,-257.33292339,0.00016438,2]
[390471239,1760057438759,-242.66707661,0.00016438,2]
[390471241,1760057438768,-500.0,0.00016438,2]
[390471243,1760057438778,-500.0,0.00016438,2]
[390471245,1760057438787,-500.0,0.00016438,2]
[390471248,1760057438797,-175.04,0.00016438,2]
[390471249,1760057438808,-500.0,0.00016438,2]
[390471251,1760057438817,-908.89,0.00016438,2]
[390471254,1760057438827,-500.0,0.00016438,2]
[390471256,1760057438837,-500.0,0.00016438,2]
[390471258,1760057438847,-500.0,0.00016438,2]
[390471260,1760057438856,-500.0,0.00016438,2]
[390471262,1760057438867,-500.0,0.00016438,2]
[390471264,1760057438876,-507.49,0.00016438,2]
[390471266,1760057438886,-500.0,0.00016438,2]
[390471268,1760057438895,-500.0,0.00016438,2]
[390471270,1760057438904,-500.0,0.00016438,2]
[390471272,1760057438913,-500.0,0.00016438,2]
[390471274,1760057438924,-500.0,0.00016438,2]
[390471276,1760057438937,-500.0,0.00016438,2]
[390471278,1760057438947,-563.33,0.00016438,2]
[390471280,1760057438956,-500.0,0.00016438,2]
[390471282,1760057438966,-500.0,0.00016438,2]
[390471284,1760057438975,-500.0,0.00016438,2]
[390471286,1760057438985,-500.0,0.00016438,2]
[390471288,1760057438994,-500.0,0.00016438,2]
[390471290,1760057439004,-500.0,0.00016438,2]
[390471292,1760057439013,-500.0,0.00016438,2]
[390471294,1760057439023,-296.45857235,0.00016438,2]
[390471296,1760057439033,-500.0,0.00016438,2]
[390471298,1760057439044,-500.0,0.00016438,2]
[390471300,1760057439054,-608.78,0.00016438,2]
[390471302,1760057439063,-500.0,0.00016438,2]
[390471304,1760057439072,-500.0,0.00016438,2]
[390471306,1760057439082,-500.0,0.00016438,2]